Cogmind - Beta 16 @@@ ROGUE MODE // 2026.02.04 @ 04:14:26 Player: Darkfire Result: Self-destructed Performance ------------- Evolutions (1) 500 Regions Visited (3) 600 Robots Destroyed (8) 40 Value Destroyed (145) 145 Prototype IDs (1) 20 Alien Tech Used (0) 0 Bonus (0) 0 TOTAL SCORE: 1305 Bonus ------- None Cogmind --------- Core Integrity 400/400 Matter 171/300 Energy 123/125 System Corruption 0% Temperature Cool (0) Movement Rolling (80) Location -9/Materials Parts ------- > --- POWER (1) -------- Light Ion Engine > --- PROPULSION (4) --- Wheel Wheel > --- UTILITY (2) ------ Experimental Sensor Array Terrain Scanner > --- WEAPON (2) ------- (None) > --- INVENTORY (5) ---- (None) Peak State ------------ > --- POWER ------------ Light Ion Engine > --- PROPULSION ------- Light Treads Light Treads > --- UTILITY ---------- Small Storage Unit Experimental Sensor Array > --- WEAPON ----------- Light Assault Rifle Grenade Launcher > --- INVENTORY -------- (None) [Rating: 15] Favorites ----------- Power Ion Engine Engine Ion Engine Propulsion Light Treads Treads Light Treads Wheel Wheel Utility Small Storage Unit Device Experimental Sensor Array Storage Small Storage Unit Weapon Assault Rifle Ballistic Gun Assault Rifle Launcher Grenade Launcher Build | -11 -10 -10 -9 ------- Run | Yrd Mat Min Mat Slots Evolved 2 | . . . 2 Power . | . . . . Propulsion 2 | . . . 2 Utility . | . . . . Weapon . | . . . . Parts Attached 14 | 6 1 7 . Power 3 | 1 . 2 . Engine 3 | 1 . 2 . Core . | . . . . Reactor . | . . . . Propulsion 5 | 2 . 3 . Treads 3 | 2 . 1 . Leg . | . . . . Wheel 2 | . . 2 . Hover . | . . . . Flight . | . . . . Utility 3 | 1 . 2 . Device 2 | . . 2 . Storage 1 | 1 . . . Processor . | . . . . Hackware . | . . . . Protection . | . . . . Artifact . | . . . . Weapon 3 | 2 1 . . Energy Gun . | . . . . Energy Cannon . | . . . . Ballistic Gun 2 | 2 . . . Ballistic Cannon . | . . . . Launcher 1 | . 1 . . Special Weapon . | . . . . Impact Weapon . | . . . . Slashing Weapon . | . . . . Piercing Weapon . | . . . . Special Melee Weapon . | . . . . Unidentified Prototypes 1 | . . 1 . Parts Lost 8 | . . 8 . Power 2 | . . 2 . Propulsion 3 | . . 3 . Utility . | . . . . Weapon 3 | . . 3 . Highest Loss Streak 4 | . . 4 . To Critical Strikes . | . . . . Average Backups 2 | . 2 2 . Power . | . 1 . . Propulsion . | . . . . Utility . | . . . . Weapon 1 | . . 1 . Tool/Special . | . . . . Unused Backups . | . . . . Power . | . . . . Propulsion . | . . . . Utility . | . . . . Weapon . | . . . . Tool/Special . | . . . . Average Slot Usage (%) 77 | . 80 76 55 Engine 13 | . 14 12 11 Treads 25 | . 28 24 . Device 9 | . . 13 22 Storage 13 | . 14 14 . Ballistic Gun 10 | . 19 6 . Launcher 3 | . 3 3 . Peak Build Rating 15 | 6 6 15 13 Average Rating 10 | 4 5 13 13 On Entrance 6 | . 6 5 13 Avg Prop Armor Cover (%) . | . . . . Naked Turns . | . . . . Heaviest Build 15 | 13 15 13 5 Greatest Support 40 | 40 40 40 20 Greatest Overweight (x) 2 | . . 2 . Average Overweight (x) . | . . . . Largest Inventory Capacity 8 | 8 8 8 5 Average Capacity 7 | 6 8 7 5 Most Carried 5 | 2 4 5 . Average Carried 2 | . 2 2 . Final Capacity 8 | 8 8 5 5 Final Carried 4 | 1 4 . . Class Distribution -------------------- 100% | Mutant Dominant Class ---------------- Mutant | -10/Materials Mutant | -10/Mines Mutant | -9/Materials Resources | -11 -10 -10 -9 ----------- Run | Yrd Mat Min Mat Matter Collected 372 | 221 114 37 . Remotely . | . . . . Salvage Created 222 | . 206 16 . Parts 12 | . 12 . . Haulers Intercepted 1 | . 1 . . Recyclers Shooed . | . . . . Parts Field Recycled . | . . . . Retrieved Matter . | . . . . Parts Self-Destructed . | . . . . Prevented . | . . . . Parts Restored . | . . . . Kills | -11 -10 -10 -9 ------- Run | Yrd Mat Min Mat Combat Hostiles Destroyed 13 | . 6 7 . Guns 3 | . 3 . . AOE 10 | . 3 7 . Classes Destroyed 5 | . 4 1 . Worker 1 | . 1 . . Hauler 1 | . 1 . . Swarmer 3 | . 3 . . Grunt 3 | . 3 . . Assembled 7 | . . 7 . Best Kill Streak 8 | . 8 6 . Combat Bots Only 6 | . 4 6 . Max Kills in Single Turn 2 | . 2 2 . Gunslinging . | . . . . Exploded 2 | . 2 2 . Melee . | . . . . Uniques/NPCs Destroyed . | . . . . Combat | -11 -10 -10 -9 -------- Run | Yrd Mat Min Mat Hostile Shots Fired 72 | . 32 40 . Missed 28 | . 12 16 . Hits 44 | . 20 24 . Melee 2 | . . 2 . Projectile 42 | . 20 22 . AOE 8 | . . 8 . Damage Taken 961 | . 197 764 . Core 207 | . 38 169 . Absorbed by Shields . | . . . . Core Remaining (%) 58 | 100 . 17 . Volleys Fired 31 | . 18 13 . Largest 2 | . 2 2 . Hottest 50 | . 50 50 . Shots Fired 49 | . 29 20 . Gun 38 | . 27 11 . Cannon . | . . . . Launcher 11 | . 2 9 . Special . | . . . . Kinetic 38 | . 27 11 . Thermal . | . . . . Explosive 11 | . 2 9 . Electromagnetic . | . . . . Robot Hit Streak 5 | . 5 5 . Robot Miss Streak 3 | . 2 3 . Penetration Max . | . . . . Secondary Targets 1 | . 1 . . Max Gunslinging Chain 1 | . 1 . . Shots Hit Robots 28 | . 17 11 . Core Hits 30 | . 11 19 . Critical Kills . | . . . . Critical Parts Destroyed 1 | . 1 . . Critical Strikes 1 | . 1 . . Destroy 1 | . 1 . . Melee Attacks . | . . . . Impact . | . . . . Slashing . | . . . . Piercing . | . . . . Sneak Attacks . | . . . . Combat Hostiles . | . . . . Follow-up Attacks . | . . . . Damage Inflicted 819 | . 291 528 . Guns 254 | . 184 70 . Cannons . | . . . . Explosions 562 | . 106 456 . Melee . | . . . . Ramming 3 | . 1 2 . Kinetic 254 | . 184 70 . Thermal . | . . . . Explosive 562 | . 106 456 . Electromagnetic . | . . . . Impact . | . . . . Slashing . | . . . . Piercing . | . . . . Highest Corruption . | . . . . Average Corruption . | . . . . Corruption Purged . | . . . . Corruption Blocked . | . . . . Overload Shots . | . . . . Overflow Damage 118 | . . 118 . Projectiles . | . . . . Explosions 118 | . . 118 . Melee . | . . . . Knockbacks . | . . . . Impact . | . . . . Kinetic . | . . . . Secondary . | . . . . Self-Inflicted Damage 150 | . . 150 . Shots 5 | . . 5 . Rammed 3 | . 1 2 . Targets Rammed 3 | . 1 2 . Kicked . | . . . . Crushed . | . . . . Highest Temperature 40 | . 12 40 . Average Temperature 13 | . 7 15 . Received Heat Transfer 126 | . 66 60 . Siege Activations . | . . . . Martial Activations . | . . . . Shielding Activations . | . . . . Robots Disrupted . | . . . . Combat Hostiles . | . . . . Robots Corrupted . | . . . . Combat Hostiles . | . . . . Parts Fried . | . . . . Impact Corruptions . | . . . . Robots Melted . | . . . . Combat Hostiles . | . . . . Parts Melted . | . . . . Heat Transferred . | . . . . Parts Sabotaged . | . . . . Parts Stolen . | . . . . Parts Stripped . | . . . . Power Chain Reactions . | . . . . Alert | -11 -10 -10 -9 ------- Run | Yrd Mat Min Mat Maximum Alert Level . | . . . . Low Security (%) 100 | 100 100 100 100 Level 1 . | . . . . Level 2 . | . . . . Level 3 . | . . . . Level 4 . | . . . . Level 5 . | . . . . High Security . | . . . . Max Security . | . . . . Peak Influence 157 | . 157 39 . Initial 39 | . . 39 . Average 24 | . 78 3 . Influence Increases 249 | . 192 57 . Destroy 0b10 Robot/C 120 | . 120 . . Destroy 0b10 Robot/NC 10 | . 10 . . Destroy Leader 22 | . 22 . . Successful Hack 5 | . 5 . . Disable Machine 15 | . . 15 . Destroy Structure 62 | . 20 42 . Lose Combat Pursuer 15 | . 15 . . Influence Decreases 249 | . 90 159 . Entered New Map 63 | . . 63 . Time Decay 147 | . 90 57 . Lost Part 39 | . . 39 . Squads Dispatched 1 | . 1 . . Investigation 1 | . 1 . . Extermination . | . . . . Reinforcement . | . . . . Assault . | . . . . Garrison . | . . . . Intercept . | . . . . Searches Triggered . | . . . . Construction Impeded . | . . . . Haulers Reinforced . | . . . . Active Scanning Responses . | . . . . Cargo Convoy Interrupts . | . . . . Stealth | -11 -10 -10 -9 --------- Run | Yrd Mat Min Mat Distress Signals . | . . . . Communications Jammed . | . . . . Distress Signals . | . . . . Times Spotted 24 | . 9 14 1 Peak Tracking Total 9 | . 4 9 1 Tactical Retreats 2 | . 1 1 . Traps | -11 -10 -10 -9 ------- Run | Yrd Mat Min Mat Traps Triggered . | . . . . Indirectly . | . . . . Trap Hack Attempts . | . . . . Triggered . | . . . . Disarmed . | . . . . Reprogrammed . | . . . . Reused . | . . . . Traps Extracted . | . . . . Installed . | . . . . Triggered . | . . . . Machines | -11 -10 -10 -9 ---------- Run | Yrd Mat Min Mat Machines Disabled 1 | . . 1 . Max in Single Turn 1 | . . 1 . Machines Repaired . | . . . . Machines Dismantled . | . . . . Machines Sabotaged . | . . . . Overloaded Fab Kills . | . . . . Hacking | -11 -10 -10 -9 --------- Run | Yrd Mat Min Mat Machines Accessed 2 | . 2 . . Terminals 2 | . 2 . . Fabricators . | . . . . Repair Stations . | . . . . Recycling Units . | . . . . Scanalyzers . | . . . . Garrison Access . | . . . . Total Hacks 5 | . 5 . . Successful 2 | . 2 . . Failed 3 | . 3 . . Catastrophic . | . . . . Database Lockouts . | . . . . Manual 1 | . 1 . . Terminals 5 | . 5 . . Fabricators . | . . . . Repair Stations . | . . . . Recycling Units . | . . . . Scanalyzers . | . . . . Garrison Access . | . . . . Terminal Hacks 2 | . 2 . . Locate Traps 1 | . 1 . . Investigation Status 1 | . 1 . . Fabricator Hacks . | . . . . Repair Station Hacks . | . . . . Recycling Unit Hacks . | . . . . Scanalyzer . | . . . . Garrison Access Hacks . | . . . . Unauthorized Hacks . | . . . . Terminals . | . . . . Fabricators . | . . . . Repair Stations . | . . . . Recycling Units . | . . . . Scanalyzers . | . . . . Garrison Access . | . . . . Data Cores Recovered . | . . . . Used . | . . . . Hacking Detections 1 | . 1 . . Full Trace Events 1 | . 1 . . Feedback Events . | . . . . Feedback Blocked . | . . . . Robot Schematics Acquired . | . . . . Robots Built . | . . . . Authchips . | . . . . Time . | . . . . Total Robot Build Rating . | . . . . Part Schematics Acquired . | . . . . Parts Built . | . . . . Authchips . | . . . . Time . | . . . . Total Part Build Rating . | . . . . Part Studies Acquired . | . . . . Parts Repaired . | . . . . Time . | . . . . Parts Recycled . | . . . . Recycled Matter . | . . . . Retrieved Matter . | . . . . Retrieved Components . | . . . . Parts Scanalyzed . | . . . . Part Schematics Acquired . | . . . . Parts Damaged . | . . . . Bothacking | -11 -10 -10 -9 ------------ Run | Yrd Mat Min Mat Used RIF Installer . | . . . . Robots Hacked . | . . . . Non-combat . | . . . . Combat . | . . . . Robot Hacks Applied . | . . . . Relay Couplers Released . | . . . . Fabnet Peak Effective % . | . . . . Robots Rewired . | . . . . Allies Hacked . | . . . . Hacks Repelled . | . . . . Allies | -11 -10 -10 -9 -------- Run | Yrd Mat Min Mat Total Allies 3 | . . 3 . Largest Group 3 | . . 3 . Highest-Rated Group 40 | . . 40 . Highest-Rated Ally 16 | . . 16 . Total Orders . | . . . . Ally Attacks 1 | . . 1 . Total Damage 14 | . . 14 . Kills . | . . . . Allies Corrupted . | . . . . Allies Melted . | . . . . Intel | -11 -10 -10 -9 ------- Run | Yrd Mat Min Mat Active Infowar (turns) 580 | . . 567 13 Sensors 580 | . . 567 13 Terrain 20 | . . 7 13 Robot Analysis Total . | . . . . Derelict Logs Recovered . | . . . . Drone Launches . | . . . . Drone Recoveries . | . . . . Exploration | -11 -10 -10 -9 ------------- Run | Yrd Mat Min Mat Turns Passed 921 | 68 254 586 13 Spaces Moved 406 | 40 108 242 16 Core 13 | 5 . 8 . Treads 367 | 35 108 224 . Legs . | . . . . Wheels 26 | . . 10 16 Hover . | . . . . Flight . | . . . . Fastest Speed 50 | 50 160 80 80 Average Speed 152 | 146 160 154 80 Slowest Speed 160 | 160 160 160 80 Overloaded Moves . | . . . . Propulsion Burnouts . | . . . . Robots Hopped . | . . . . Potential Cave-ins . | . . . . Cave-ins Triggered . | . . . . Exploration Rate (%) 16 | 3 24 35 4 Regions Visited 3 Branch Regions 1 Pre-discovered Areas . | . . . . Known Exits Taken . | . . . . Unknown Exits Taken 3 | 1 1 1 . Scrap Searched 1 | . . 1 . Spaces Dug 15 | . . 15 . Terrain Destroyed 78 | . 19 59 . Melee . | . . . . Projectile . | . . . . AOE 78 | . 19 59 . Terrain Rammed . | . . . . Walls Destroyed . | . . . . Machines Disabled . | . . . . Actions | -11 -10 -10 -9 --------- Run | Yrd Mat Min Mat Total 658 | 48 162 432 16 Wait 195 | . 32 163 . Move 403 | 39 107 241 16 Hop . | . . . . Pick Up 7 | 3 2 2 . Fast Attach 8 | 4 . 4 . Attach 7 | 2 . 5 . Detach 1 | . 1 . . Swap 1 | . 1 . . Drop 2 | . . 2 . Fire 31 | . 18 13 . Melee . | . . . . Ram . | . . . . Kick . | . . . . Crush 3 | . 1 2 . Escape Stasis . | . . . . Rewire . | . . . . Trap . | . . . . Miscellaneous . | . . . . Route ------- -11/Scrapyard -10/Materials -10/Mines -9/Materials History --------- Turn | Location | Event 10 | -11/Scrapyard | Discovered new exit (range 15) 69 | -11/Scrapyard | Entered Materials 303 | -10/Materials | Discovered new exit (range 8) 309 | -10/Materials | Build established: Mutant 323 | -10/Materials | Entered Mines 338 | -10/Mines | Found a damaged Exp. Sensor Array with a note attached 341 | -10/Mines | Found Prototype Device 342 | -10/Mines | Identified Exp. Sensor Array 357 | -10/Mines | Assisted by bots powering up and referring to "LRC-V3" 442 | -10/Mines | Assembled infested the area 447 | -10/Mines | Assisted by a Guerilla fighting off Assembled 515 | -10/Mines | Lost 3 parts (1p1n1w) 517 | -10/Mines | Lost 4 allies 869 | -10/Mines | Discovered new exit (range 11) 875 | -10/Mines | Core integrity fell below 50% 909 | -10/Mines | Entered Materials 909 | -9/Materials | Evolved 2 slots: Propulsion x2 918 | -9/Materials | Lost 4 parts (1p1n2w) 922 | -9/Materials | Self-destructed Last Messages --------------- R-06 Scavenger collects Lgt. Ion Engine. The unstable cave ceiling collapses. K-01 Serf collects debris. R-06 Scavenger collects Mining Laser. Acquired Wheel. R-06 Scavenger collects Lgt. Ion Engine. Acquired Wheel. The unstable cave ceiling collapses. Dropped Wheel. Acquired Wheel. Dropped Sml. Storage Unit. Acquired Terrain Scanner. Extracted 3 matter. The unstable cave ceiling collapses. Acquired Lgt. Ion Engine. [Achievement: I Survived The Infestation] PARAMETERS=PROPULSION+2 LOCATION=UNKNOWN GOAL=ESCAPE T-07 Excavator is excavating. Map ----- +----------------------------------------------------+ | ?????????????????????????????????????????????????? | | ?????????????????????????????????????????????????? | | ?????????????????????????????????????????????????? | | ?????????????????????????????????????????????????? | | ?????????????????????????????????????????????????? | | ?????????????????????????????????????????????????? | | ?????????????????????????????????????????????????? | | ?????????????????????????????????????????????????? | | ??????????????????????#??????????????????????????? | | ????????????????????#####????????????????????????? | | ????????????????????# #????????????????????????? | | ????????????????????# #????????????????????????? | | ??????????????????### #????????????????????????? | | ??????????????????# #????????????????????????? | | ??????????????????### ####?????????????????????? | | ????????????#?????#?# +?????????????????????? | | ????????????????????# ####?????????????????????? | | ????????????????????# #????????????????????????? | | ????????????????????# #????????????????????????? | | ????????????????????# #????????? ??????????????? | | ????????????????????+ #????????????????????????? | | ????????????????????# ########+##??????????????? | | ?????????????#??????# ##### ?????????? | | ????????????????????# ?????????? | | ????????????????????# ! #??????????????? | | ????????????????????# @ ######??????????????? | | ????????????????????# """ #???????????????????? | | ????????????????? /w """ *#???????????????????? | | ?????????????? # """ #???????????????????? | | ???????????] ??# #???????????????????? | | ???????????? ????# #???????????????????? | | ????????????##??????# #### #???????????????????? | | ????????????????????#+???? #???????????????????? | | ?????????????????????????? ????????????????????? | | ?????????????????????????? ??????????????????????? | | ?????????????????????????????????????????????????? | | ?????????????????????????????????????????????????? | | ?????????????????????????????????????????????????? | | ?????????????????????????????????????????????????? | | ?????????????????????????????????????????????????? | | ?????????????????????????????????????????????????? | | ?????????????????????????????????????????????????? | | ?????????????????????????????????????????????????? | | ?????????????????????????????????????????????????? | | ?????????????????????????????????????????????????? | | ?????????????????????????????????????????????????? | | ?????????????????????????????????????????????????? | | ?????????????????????????????????????????????????? | | ?????????????????????????????????????????????????? | | ?????????????????????????????????????????????????? | +----------------------------------------------------+ Best States ------------- Heat Dissipation 28 Energy Generation 10 Energy Capacity 250 Matter Stores 300 Matter Capacity 300 Sight Range 16 Robot Scan Range 20 Terrain Scan Range 14 Terrain Scan Density 10 Evasion (%) 44 Recoil Reduction 2 Item Schematics ----------------- None Robot Schematics ------------------ None Fabricated ------------ Nothing Repaired ---------- Nothing Studied --------- None Alien Tech Used ----------------- None Achievements -------------- I Survived The Infestation Challenges ------------ None Game ------ Seed LaserHellfireReconstructor Manual? 0 Play Time 00:07:39 Cumulative 9.0 hours Start 2026.02.04 @ 04:06:57 End 2026.02.04 @ 04:14:26 Sessions 1 Manual Loads 0 Difficulty Rogue Special Mode None Game No. 11 Rogue 11 Adventurer 0 Explorer 0 Win Type - Total 0 Types 0/0/0/0/0/0/0/0/0/0 Lore% 8 Gallery% 13 Achievement% 13 Wizard Run 0 Options --------- Layout 1 ASCII 0 Keyboard 0 Movement Mouse Keybinds 0 Fullscreen 2 Font 24/Smallcaps Map View 76x35 Zoom Use 0% Tactical HUD 0 Map Filters NONE Filters NONE Steam 1 RUN: 4414759a-ac3e-4f6b-8532-7e1e1a72d677